bitfinex/quotes_ETHUSD_20250824
["timestamp","ask_amount","ask_price","bid_price","bid_amount"]
[1756050660097,1.5254808,4811.9,4811.8,3.575]
[1756050660300,1.5254808,4811.9,4811.5,0.004]
[1756050660501,3.0,4811.4,4811.3,0.004]
[1756050660705,3.3082,4811.4,4811.3,0.004]
[1756050660936,0.7408,4811.4,4811.3,0.004]
[1756050661244,0.7846808,4811.9,4811.3,0.108]
[1756050661245,0.8886808,4811.9,4811.3,0.108]
[1756050661415,0.728728,4811.9,4811.3,0.4244]
[1756050661918,1.161328,4811.9,4811.3,0.108]
[1756050662246,1.057328,4811.9,4811.3,0.108]
[1756050662459,0.624728,4811.9,4811.4,2.07836928]
[1756050662628,0.624728,4811.9,4811.8,0.104]
[1756050662830,0.932928,4811.9,4811.8,3.676]
[1756050663350,1.365528,4811.9,4811.8,3.676]
[1756050663552,1.5254808,4811.9,4811.8,3.572]
[1756050666156,1.5254808,4811.9,4811.7,3.57]
[1756050666357,0.4326,4811.8,4811.3,3.573]
[1756050666662,0.3082,4811.4,4811.3,0.004]
[1756050666872,0.3082,4811.4,4810.8,0.024]
[1756050667173,18.39346644,4810.9,4810.8,0.024]
[1756050667368,18.70166644,4810.9,4810.8,0.024]
[1756050667658,19.13426644,4810.9,4810.8,0.024]
[1756050667966,5.75822664,4810.9,4810.8,0.024]
[1756050668132,3.4122,4810.9,4810.8,0.024]
[1756050668327,3.8448,4810.9,4810.8,0.024]
[1756050668936,3.4122,4810.9,4810.8,0.024]
[1756050669335,3.8448,4810.9,4810.8,0.024]
[1756050669926,3.104,4810.9,4810.8,0.024]
[1756050670318,3.728851,4810.9,4810.8,0.024]
[1756050670523,0.728851,4810.9,4810.8,0.024]
[1756050670969,1.037051,4810.9,4810.8,0.024]
[1756050671459,0.728851,4810.9,4810.8,0.024]
[1756050671644,0.624851,4810.9,4810.8,0.024]
[1756050672225,0.933051,4810.9,4810.8,0.024]
[1756050672430,1.365651,4810.9,4810.8,3.593]
[1756050672729,1.365651,4810.9,4810.8,0.024]
[1756050672730,2.19321896,4810.9,4810.8,0.024]
[1756050672933,5.19321896,4810.9,4810.8,0.024]
[1756050673131,2.19321896,4810.9,4810.8,0.024]
[1756050674964,1.76061896,4810.9,4810.8,0.024]
[1756050675156,0.933051,4810.9,4810.8,0.024]
[1756050675555,1.365651,4810.9,4810.8,0.024]
[1756050676332,4.365651,4810.9,4810.8,0.024]
[1756050679363,0.624851,4810.9,4810.8,0.024]
[1756050679530,0.933051,4810.9,4810.8,0.024]
[1756050679729,1.365651,4810.9,4810.8,0.024]
[1756050680552,1.8126161,4810.9,4810.8,0.024]
[1756050680732,4.8126161,4810.9,4810.8,0.024]
[1756050681437,4.8126161,4810.9,4810.8,0.0209]
[1756050683638,38.3736161,4810.9,4810.8,0.0209]
[1756050685371,38.81926041,4810.9,4810.8,0.0209]
[1756050685749,8.81926041,4810.9,4810.8,0.0209]
[1756050685946,38.81926041,4810.9,4810.8,0.0209]
[1756050686670,39.14451721,4810.9,4810.8,0.0209]
[1756050687170,39.14471442,4810.9,4810.8,0.0209]
[1756050687557,38.6988729,4810.9,4810.8,0.0209]
[1756050689375,38.6988729,4810.9,4809.7,1.3969]
[1756050689376,39.14495757,4810.9,4809.7,1.3969]
[1756050689677,3.0,4809.9,4809.7,1.3969]
[1756050689877,3.0,4809.9,4809.8,0.004]
[1756050690259,3.3977,4809.9,4809.8,0.004]
[1756050690444,4.0227,4809.9,4809.8,0.004]
[1756050690846,3.729,4809.9,4809.8,0.004]
[1756050691483,3.729,4809.9,4809.8,0.3052]
[1756050691997,3.729,4809.9,4809.8,0.004]
[1756050693762,0.729,4809.9,4809.8,0.3052]
[1756050694681,0.625,4809.9,4809.8,0.3052]
[1756050694848,0.625,4809.9,4809.8,0.6363]
[1756050695270,3.0,4810.7,4809.8,0.6363]
[1756050695780,0.624879,4810.0,4809.8,0.6363]
[1756050695980,0.624879,4810.0,4809.8,0.3052]
[1756050696153,0.624879,4810.0,4809.9,0.4351]
[1756050696349,0.624879,4810.0,4809.9,0.7363]
[1756050696556,0.624879,4810.0,4809.9,0.4052]
[1756050696886,0.624879,4810.0,4809.9,0.7363]
[1756050697053,0.624879,4810.0,4809.9,0.4052]
[1756050699167,0.624879,4810.0,4809.9,0.98513239]
[1756050699367,3.124,4810.8,4809.9,2.81534261]
[1756050699568,0.624874,4810.6,4809.9,0.7363]
[1756050699899,0.624874,4810.6,4809.9,2.3353]
[1756050700502,0.624874,4810.6,4809.9,2.0042]
[1756050702089,0.001,4810.5,4809.9,2.0042]
[1756050703865,7.20372862,4810.0,4809.8,0.004]
[1756050704089,0.4588,4809.9,4809.8,0.004]
[1756050704290,3.7525,4809.9,4809.8,0.004]
[1756050704494,3.835841,4809.9,4809.8,0.004]
[1756050707376,33.835841,4809.9,4809.8,0.004]
[1756050707713,35.977719,4809.9,4809.8,0.004]
[1756050707908,35.978719,4809.9,4809.8,0.004]
[1756050708110,36.42503241,4809.9,4809.8,0.004]
[1756050709676,6.42503241,4809.9,4809.8,0.004]
[1756050709911,0.084341,4809.9,4809.8,0.3052]
[1756050710312,0.084341,4809.9,4809.8,0.004]
[1756050711188,30.836841,4809.9,4809.8,0.004]
[1756050711387,33.836841,4809.9,4809.8,0.004]
[1756050711588,34.2838615,4809.9,4809.8,0.004]
[1756050711820,36.4257395,4809.9,4809.8,0.004]
[1756050712395,40.6437395,4809.9,4809.8,0.004]
[1756050713311,41.20058243,4809.9,4809.8,0.004]
[1756050713498,40.6437395,4809.9,4809.8,0.004]
[1756050713814,40.7477395,4809.9,4809.8,0.004]
[1756050721114,5.7772395,4809.9,4809.8,0.2916]
[1756050721327,0.188341,4809.9,4809.8,0.2916]
[1756050724642,0.084341,4809.9,4809.8,0.2916]
[1756050724938,0.084341,4809.9,4809.8,0.6227]
[1756050725114,0.001,4809.9,4809.8,0.6227]
[1756050725315,0.001,4809.9,4809.8,0.7267]
[1756050727141,0.001,4809.9,4809.8,1.00729078]
[1756050727331,0.001,4809.9,4809.8,0.7267]
[1756050729209,0.001,4809.9,4809.8,0.3956]
[1756050729434,0.3116,4809.9,4809.8,0.004]
[1756050729632,0.8652,4809.9,4809.8,0.004]
[1756050729946,0.4156,4809.9,4809.8,0.004]
[1756050730743,0.8652,4809.9,4809.8,0.004]
[1756050730946,1.64272286,4809.9,4809.8,0.004]
[1756050731247,1.64272286,4809.9,4809.3,0.004]
[1756050731248,0.66,4809.6,4809.3,0.004]
[1756050731453,10.32462862,4809.4,4809.3,0.004]
[1756050731652,40.32462862,4809.4,4809.3,0.004]
[1756050731821,40.77422862,4809.4,4809.3,0.004]
[1756050732150,40.77422862,4809.4,4809.1,0.04]
[1756050732151,0.66,4809.3,4809.1,0.04]
[1756050732353,0.66,4808.6,4807.1,0.04]
[1756050732655,10.98462862,4808.2,4807.1,0.04]
[1756050732816,44.54562862,4808.2,4807.1,0.04]
[1756050733016,45.07861062,4808.2,4807.1,0.04]
[1756050733322,45.40429043,4808.2,4807.1,0.04]
[1756050735365,53.79167115,4808.2,4807.1,0.04]
[1756050735543,53.79167115,4808.2,4807.6,0.004]
[1756050736743,50.23267115,4808.2,4807.6,0.004]
[1756050736986,53.78967115,4808.2,4807.6,0.004]
[1756050737118,50.23267115,4808.2,4807.6,0.004]
[1756050737324,0.66,4808.0,4807.1,0.044]
[1756050737570,3.0,4807.2,4807.1,0.044]
[1756050737761,6.572,4807.2,4807.1,0.044]
[1756050737928,6.572,4807.2,4807.1,0.3316]
[1756050738133,6.573,4807.2,4807.1,0.3316]
[1756050738561,3.0,4807.2,4807.1,0.3316]
[1756050739033,3.573,4807.4,4807.1,0.3316]
[1756050739034,3.572,4807.7,4807.1,0.3316]
[1756050739244,0.40906181,4808.2,4807.1,0.3316]
[1756050739551,3.573,4808.1,4807.1,0.6627]
[1756050739717,3.0,4808.0,4807.1,0.93901272]
[1756050739921,0.083382,4808.2,4807.1,0.93901272]
[1756050740152,0.083382,4808.2,4807.2,0.3311]
[1756050740357,0.083382,4808.2,4807.1,0.32031272]
[1756050740553,33.573,4808.1,4807.1,0.044]
[1756050740759,33.0,4808.0,4807.1,0.044]
[1756050741052,3.0,4807.8,4807.1,0.044]
[1756050741224,0.3106,4807.2,4807.1,0.044]
[1756050741426,3.0,4807.6,4807.1,0.044]
[1756050741625,3.0,4807.4,4807.1,0.044]
[1756050742257,3.0,4807.6,4807.3,0.2872]
[1756050742568,3.0,4807.9,4807.3,0.2872]
[1756050742753,0.083382,4808.2,4807.3,0.2872]
[1756050742957,3.0,4808.0,4807.3,0.2872]
[1756050743154,2.99599985,4808.0,4807.3,0.2872]
[1756050743344,0.083382,4808.2,4807.3,0.2872]
[1756050744332,0.531082,4808.2,4807.3,0.2872]
[1756050744535,0.083382,4808.2,4807.3,0.2872]
[1756050744929,0.083382,4808.2,4807.3,0.51333]
[1756050745141,0.083382,4808.2,4807.4,0.3311]
[1756050745343,0.083382,4808.2,4808.1,0.2872]
[1756050745666,0.381882,4808.2,4807.1,1.643]
[1756050745865,0.829582,4808.2,4807.1,1.643]
[1756050746065,0.7402582,4808.1,4807.1,1.643]
[1756050747471,0.104,4807.8,4807.1,1.747]
[1756050747837,0.104,4807.8,4807.7,0.2872]
[1756050748171,0.625264,4807.8,4807.7,0.2872]
[1756050748471,0.104,4808.0,4807.7,0.2872]
[1756050748666,0.62524,4807.9,4807.7,0.2872]
[1756050749741,0.104,4808.0,4807.7,0.2872]
[1756050750565,0.104,4808.0,4807.2,1.599]
[1756050750747,0.104,4808.0,4807.4,0.104]
[1756050752669,0.104,4808.0,4807.2,0.104]
[1756050753544,0.4477,4807.9,4807.2,0.104]
[1756050754138,0.625226,4807.8,4807.2,0.104]
[1756050756573,0.665226,4807.8,4807.2,0.104]
[1756050756874,0.665226,4807.8,4806.5,1.599]
[1756050756875,0.6733926,4807.7,4807.0,0.104]
[1756050757279,0.6733926,4807.7,4806.4,0.004]
[1756050757280,0.2985,4807.1,4806.4,0.004]
[1756050757463,0.104,4806.8,4806.4,0.004]
[1756050757864,0.2985,4806.5,4806.4,0.004]
[1756050758279,0.4025,4806.5,4806.4,0.004]
[1756050758445,0.8502,4806.5,4806.4,0.004]
[1756050758952,0.104,4806.5,4806.4,0.004]
[1756050759945,0.104,4806.9,4806.4,0.004]
[1756050760282,0.4477,4807.0,4806.4,0.108]
[1756050760641,0.4477,4806.9,4806.4,0.004]
[1756050760881,0.4477,4807.0,4806.4,0.004]
[1756050761184,0.4477,4806.9,4806.4,0.004]
[1756050761385,0.4477,4807.0,4806.4,0.004]
[1756050761703,0.4477,4807.0,4806.5,0.104]
[1756050761991,0.4025,4806.6,4806.4,0.004]
[1756050762289,0.4477,4807.2,4806.4,0.004]
[1756050762596,0.104,4806.9,4806.4,0.004]
[1756050762978,0.4477,4806.8,4806.4,0.004]
[1756050764584,0.104,4806.9,4806.4,0.004]
[1756050764963,0.5517,4806.9,4806.4,0.004]
[1756050765358,0.4477,4806.8,4806.4,0.004]
[1756050765561,0.2985,4806.5,4806.4,0.004]
[1756050766162,0.7462,4806.5,4806.4,0.004]
[1756050766570,0.104,4806.6,4806.4,0.004]
[1756050766963,0.4477,4806.5,4806.4,0.004]
[1756050767159,0.7462,4806.5,4806.4,0.004]
[1756050770134,0.8502,4806.5,4806.4,0.004]
[1756050770460,0.4477,4807.2,4806.4,0.004]
[1756050770668,0.104,4807.0,4806.4,0.004]
[1756050771102,0.2985,4806.5,4806.4,0.004]
[1756050771485,0.7462,4806.5,4806.4,0.004]
[1756050771660,0.8502,4806.5,4806.4,0.004]
[1756050772476,3.0,4807.3,4806.4,0.004]
[1756050772679,0.104,4806.9,4806.4,0.004]
[1756050773167,0.4663,4806.8,4806.4,0.004]
[1756050773683,0.4663,4806.7,4806.4,0.004]
[1756050774519,0.104,4806.9,4806.4,0.004]
[1756050774837,3.0,4807.3,4806.4,0.004]
[1756050774990,3.0,4807.3,4806.8,0.104]
[1756050775186,0.4663,4807.2,4806.8,0.104]
[1756050775433,0.4663,4807.1,4806.8,0.104]
[1756050775811,0.4663,4807.0,4806.8,0.104]
[1756050776326,0.104,4807.5,4806.8,0.104]
[1756050776531,0.4663,4807.7,4806.8,2.18435832]
[1756050776714,0.4663,4807.7,4807.1,0.104]
[1756050777025,0.144,4807.8,4807.1,0.104]
[1756050777225,0.4663,4807.7,4807.1,0.104]
[1756050777711,0.4056,4807.2,4806.5,0.104]
[1756050778301,0.4663,4807.1,4806.5,0.104]
[1756050780025,0.104,4807.4,4806.5,0.104]
[1756050780241,0.04,4807.8,4807.0,0.104]
[1756050780546,0.04,4807.8,4807.4,0.104]
[1756050780925,0.5063,4807.8,4807.4,0.104]
[1756050781834,0.4663,4807.7,4807.4,0.104]
[1756050782553,0.04,4807.8,4807.4,0.104]
[1756050782703,0.4663,4807.6,4807.4,0.104]
[1756050782906,0.04,4807.8,4807.4,0.104]
[1756050783121,0.4663,4807.5,4807.4,0.104]
[1756050783845,0.04,4807.8,4807.4,0.104]
[1756050784554,0.3016,4807.5,4807.4,0.104]
[1756050784748,0.7679,4807.5,4807.4,0.104]
[1756050787820,0.5063,4807.8,4807.4,0.104]
[1756050788119,0.3016,4807.5,4807.4,0.104]
[1756050788523,0.7679,4807.5,4807.4,0.104]
[1756050789162,0.04,4807.8,4807.4,0.104]
[1756050789510,0.4663,4807.7,4807.4,0.104]
[1756050790533,0.04,4807.8,4807.4,0.104]
[1756050790728,0.4663,4807.6,4807.4,0.104]
[1756050790930,0.7679,4807.5,4807.4,0.104]
[1756050792125,0.7679,4807.5,4807.2,0.104]
[1756050792509,0.4663,4807.4,4807.2,0.104]
[1756050792714,0.3016,4807.3,4807.2,0.104]
[1756050792941,0.7679,4807.3,4806.8,1.6]
[1756050793244,0.4663,4807.2,4806.8,1.6]
[1756050793447,0.4663,4807.2,4806.7,0.104]
[1756050793621,0.104,4807.4,4806.7,0.104]
[1756050793943,0.3016,4806.8,4806.4,0.004]
[1756050794148,0.3016,4806.8,4806.4,0.108]
[1756050794445,0.4663,4806.7,4806.4,0.108]
[1756050794748,0.3016,4806.5,4806.4,0.108]
[1756050795132,0.7679,4806.5,4806.4,0.108]
[1756050795330,0.4663,4807.0,4806.4,0.108]
[1756050796214,0.3016,4806.5,4806.4,0.108]
[1756050796417,0.7679,4806.5,4806.4,0.108]
[1756050796617,0.4663,4806.5,4806.4,0.108]
[1756050797664,0.7679,4806.5,4806.4,0.108]
[1756050798555,0.4663,4806.5,4806.4,0.108]
[1756050799061,0.4663,4806.9,4806.4,0.108]
[1756050799259,0.4663,4806.8,4806.4,0.108]
[1756050799562,0.4663,4806.7,4806.4,0.108]
[1756050799924,8.39422204,4807.1,4806.4,0.108]
[1756050800125,0.4663,4806.7,4806.4,0.108]
[1756050800560,7.02292913,4807.1,4806.4,0.108]
[1756050800760,0.4663,4806.6,4806.4,0.108]
[1756050800961,0.3016,4806.5,4806.4,0.108]
[1756050801157,0.7679,4806.5,4806.4,0.004]
[1756050801743,0.4663,4806.5,4806.4,0.004]
[1756050802042,7.02292913,4807.1,4806.4,0.004]
[1756050802240,0.4575,4806.8,4806.4,0.004]
[1756050802623,0.4575,4806.7,4806.4,0.004]
[1756050803227,7.02292913,4807.1,4806.4,0.004]
[1756050803422,0.4575,4806.6,4806.4,0.004]
[1756050803635,0.3051,4806.5,4806.4,0.004]
[1756050803925,0.7626,4806.5,4806.4,0.004]
[1756050806243,3.6915,4807.4,4806.4,0.108]
[1756050806559,0.4575,4807.1,4806.4,0.108]
[1756050806862,0.4575,4807.1,4806.7,0.104]
[1756050807032,3.234,4807.4,4806.7,0.104]
[1756050807235,0.4575,4807.0,4806.7,0.104]
[1756050808047,0.3051,4806.8,4806.7,0.104]
[1756050808272,0.3051,4806.8,4806.4,0.004]
[1756050808452,0.4575,4806.7,4806.4,0.108]
[1756050808766,0.3051,4806.5,4806.4,0.108]
[1756050809328,0.7626,4806.5,4806.4,0.108]
[1756050809934,0.4575,4806.5,4806.4,0.108]
[1756050812377,0.4585,4807.0,4806.4,0.108]
[1756050812682,0.4585,4807.0,4806.7,0.104]
[1756050812877,0.001,4807.0,4806.7,0.104]
[1756050813080,0.4575,4806.9,4806.7,0.104]
[1756050813241,0.4575,4806.8,4806.7,0.104]
[1756050813442,0.7626,4806.8,4806.7,0.104]
[1756050814581,0.4575,4806.8,4806.7,0.104]
[1756050814967,0.001,4807.0,4806.7,0.104]
[1756050815373,0.4575,4806.9,4806.7,0.104]
[1756050816348,0.001,4807.0,4806.7,0.104]
[1756050816879,0.001,4807.0,4806.8,0.42690049]
[1756050817079,0.001,4807.0,4806.8,2.50727525]
[1756050817471,0.001,4807.0,4806.8,0.42690049]
[1756050817651,0.001,4807.0,4806.9,2.18434284]
[1756050817850,0.001,4807.0,4806.9,0.104]
[1756050818047,0.001,4807.0,4806.9,2.65351718]
[1756050818279,0.001,4807.0,4806.9,0.57317434]
[1756050818486,0.001,4807.0,4806.9,0.104]
[1756050818853,0.001,4807.0,4806.9,2.18434284]
[1756050819283,0.001,4807.0,4806.9,0.0304]
[1756050820159,0.001,4807.0,4806.9,2.11074284]
[1756050822190,0.001,4807.0,4806.9,0.0304]
[1756050822367,0.001,4807.0,4806.9,2.11074284]
[1756050822569,0.001,4807.0,4806.9,3.04576284]
[1756050824988,0.7636,4807.0,4806.9,0.0304]
[1756050825202,0.7636,4807.0,4806.7,0.104]
[1756050825361,0.4575,4806.9,4806.7,0.104]
[1756050825690,0.3051,4806.8,4806.7,0.104]
[1756050826087,0.7626,4806.8,4806.7,0.104]
[1756050826391,0.7626,4806.8,4806.5,0.104]
[1756050826598,0.4575,4806.7,4806.5,0.104]
[1756050826813,0.3051,4806.6,4806.5,0.104]
[1756050827477,0.7626,4806.6,4806.5,0.104]
[1756050830770,0.3051,4806.6,4806.5,0.104]
[1756050831002,0.001,4806.8,4806.5,0.104]
[1756050831308,0.4575,4806.7,4806.5,0.104]
[1756050831611,0.001,4806.8,4806.5,0.104]
[1756050831771,0.4575,4806.6,4806.5,0.104]
[1756050833194,0.7681,4806.6,4806.5,0.104]
[1756050834985,1.393412,4806.6,4806.5,0.104]
[1756050836101,0.625312,4806.6,4806.5,0.104]
[1756050836306,1.055712,4806.6,4806.5,0.104]
[1756050838018,0.625312,4806.6,4806.5,0.104]
[1756050838380,1.055712,4806.6,4806.5,0.104]
[1756050839718,1.366312,4806.6,4806.5,0.104]
[1756050840107,1.055712,4806.6,4806.5,0.104]
[1756050841422,0.625312,4806.6,4806.5,0.104]
[1756050841628,0.625312,4806.6,4806.5,2.18451596]
[1756050841797,0.625312,4806.6,4806.5,0.104]
[1756050841997,1.055712,4806.6,4806.5,0.104]
[1756050842332,0.625312,4806.6,4806.5,2.54875267]
[1756050842532,0.001,4806.8,4806.7,2.0804294]
[1756050845701,0.001,4806.8,4806.7,5.6374294]
[1756050848309,0.001,4806.8,4806.7,6.2974294]
[1756050848511,0.001,4806.8,4806.7,6.2964294]
[1756050848724,0.001,4806.8,4806.7,7.37940759]
[1756050852580,0.001,4806.8,4806.7,7.48340759]
[1756050853273,0.001,4806.8,4806.7,6.82340759]
[1756050853429,0.742,4806.8,4806.7,6.82340759]
[1756050857433,0.742,4806.8,4806.7,3.66]
[1756050857962,0.001,4806.8,4806.7,5.7404294]
[1756050861235,0.001,4806.8,4806.7,6.4004294]
[1756050865378,0.7571,4806.8,4806.7,5.7404294]
[1756050865583,0.4645,4806.8,4806.7,5.7404294]
[1756050865883,0.4645,4806.8,4806.7,6.52332306]
[1756050866380,0.001,4806.8,4806.7,6.52332306]
[1756050868447,0.7571,4806.8,4806.7,6.52332306]
[1756050868655,0.7571,4806.8,4806.7,5.7384294]
[1756050868851,0.7571,4806.8,4806.7,3.658]
[1756050869159,0.7571,4806.8,4806.7,5.7384294]
[1756050869358,0.7071,4806.8,4806.7,3.658]
[1756050870387,0.7071,4806.8,4806.7,5.7384294]
[1756050871183,0.7071,4806.8,4806.7,3.658]
[1756050872502,0.8371,4806.8,4806.7,0.104]
[1756050873969,0.8371,4806.8,4806.7,3.657]
[1756050874158,0.13,4806.8,4806.7,6.1039294]
[1756050874361,0.001,4806.9,4806.8,2.08038611]
[1756050874362,0.131,4806.9,4806.8,2.08038611]
[1756050874760,0.4236,4806.9,4806.8,2.08038611]
[1756050875171,0.4236,4806.9,4806.7,0.104]
[1756050875377,0.8871,4806.9,4806.8,3.553]
[1756050875577,0.8871,4806.9,4806.7,0.104]
[1756050875780,0.4635,4806.8,4806.7,0.104]
[1756050876108,0.7561,4806.8,4806.7,0.104]
[1756050878370,0.8861,4806.8,4806.7,0.104]
[1756050880679,1.51143,4806.8,4806.7,0.104]
[1756050880879,1.662873,4806.8,4806.7,0.104]
[1756050881507,1.51143,4806.8,4806.7,0.104]
[1756050882237,0.8861,4806.8,4806.7,0.104]
[1756050882711,0.13,4806.8,4806.7,2.1844294]
[1756050882912,0.5935,4806.8,4806.7,2.1844294]
[1756050883283,0.5935,4806.8,4806.7,0.104]
[1756050883506,0.8861,4806.8,4806.7,0.104]
[1756050886690,0.8861,4806.8,4806.6,0.004]
[1756050886883,0.4226,4806.8,4806.6,0.004]
[1756050887084,0.4635,4806.7,4806.6,0.004]
[1756050887313,0.7561,4806.7,4806.6,0.004]
[1756050887881,0.8861,4806.7,4806.6,0.004]
[1756050889620,0.8861,4806.7,4806.1,0.108]
[1756050889621,9.91892913,4806.2,4806.1,0.004]
[1756050889946,3.27141382,4806.1,4805.1,0.04]
[1756050890084,7.21152913,4805.2,4805.1,0.04]
[1756050890433,10.44552913,4805.2,4805.1,0.04]
[1756050890787,10.90902913,4805.2,4805.1,0.04]
[1756050891006,4.0941,4805.2,4805.1,0.04]
[1756050891213,5.36025075,4805.2,4805.1,0.04]
[1756050896215,8.91125075,4805.2,4805.1,0.04]
[1756050896522,8.91125075,4805.2,4805.1,0.044]
[1756050897100,15.83017988,4805.2,4805.1,0.044]
[1756050897490,45.83017988,4805.2,4805.1,0.044]
[1756050897692,46.1015937,4805.2,4805.1,0.044]
[1756050897891,45.83017988,4805.2,4805.1,0.044]
[1756050900298,46.7615937,4805.2,4805.1,0.044]
[1756050900646,45.83017988,4805.2,4805.1,0.044]
[1756050901236,3.66,4805.1,4804.1,0.044]
[1756050901547,3.2887,4804.9,4804.1,0.044]
[1756050901694,36.8397,4804.9,4804.1,0.044]
[1756050901895,37.288,4804.9,4804.1,0.044]
[1756050902826,37.418,4804.9,4804.1,0.044]
[1756050903025,36.008878,4804.9,4804.1,0.044]
[1756050903193,39.560878,4804.9,4804.1,0.044]
[1756050904799,36.008878,4804.9,4804.1,0.044]
[1756050905099,9.559878,4804.9,4804.1,0.044]
[1756050906021,9.559878,4804.9,4804.3,0.004]
[1756050906629,0.13,4804.9,4804.3,0.004]
[1756050906821,4.419,4804.9,4804.3,0.004]
[1756050907400,7.419,4804.9,4804.3,0.004]
[1756050908018,6.682,4804.9,4804.3,0.004]
[1756050908418,3.13,4804.9,4804.3,0.004]
[1756050908630,3.682,4804.9,4804.3,0.004]
[1756050909228,0.13,4804.9,4804.3,0.004]
[1756050909438,0.13,4804.9,4804.8,2.10125208]
[1756050909633,0.13,4804.9,4804.8,2.31137729]
[1756050910001,0.13,4804.9,4804.8,0.23012521]
[1756050910204,0.13,4804.9,4804.8,0.02]
[1756050911433,0.13,4804.9,4804.8,0.124]
[1756050911735,0.13,4804.9,4804.8,2.20525208]
[1756050911925,0.13,4804.9,4804.8,0.124]
[1756050912108,0.13,4804.9,4804.8,2.20525208]
[1756050912309,0.13,4804.9,4804.8,2.63391824]
[1756050913440,0.13,4804.9,4804.8,2.63791824]
[1756050913836,0.131,4805.1,4805.0,2.08116545]
[1756050914226,0.131,4805.1,4805.0,2.84516545]
[1756050914646,0.131,4805.1,4805.0,2.74116545]
[1756050914831,0.131,4805.1,4805.0,3.37267382]
[1756050915305,0.131,4805.1,4805.0,0.764]
[1756050915709,0.131,4805.1,4805.0,2.84516545]
[1756050921747,0.131,4805.1,4805.0,9.76409458]
[1756050922050,0.131,4805.1,4805.0,2.84516545]
[1756050922847,0.131,4805.1,4805.0,6.39516545]
[1756050923151,0.131,4805.1,4805.0,7.97996521]
[1756050923447,0.001,4805.6,4805.5,2.74094891]
[1756050923834,0.001,4805.6,4805.5,4.44494891]
[1756050924823,0.001,4805.6,4805.5,7.99394891]
[1756050925850,0.7548,4805.6,4805.5,0.764]
[1756050926032,0.7548,4805.6,4805.5,2.84494891]
[1756050926230,0.7548,4805.6,4805.5,3.69244568]
[1756050927317,0.7548,4805.6,4805.5,0.104]
[1756050928054,1.380284,4805.6,4805.5,0.104]
[1756050929355,1.380284,4805.6,4805.5,2.18494891]
[1756050929557,0.001,4805.6,4805.5,2.74094891]
[1756050936337,0.001,4805.6,4805.0,0.004]
[1756050936338,0.7548,4805.6,4805.0,0.004]
[1756050936561,0.439,4805.5,4805.1,5.62909237]
[1756050936760,0.3148,4805.2,4805.1,3.548]
[1756050936961,0.7538,4805.2,4805.1,3.548]
[1756050937149,0.7538,4805.2,4805.1,5.62912214]
[1756050937670,0.7538,4805.2,4805.1,3.548]
[1756050937839,0.7538,4805.2,4805.1,5.62912214]
[1756050938040,0.7538,4805.2,4805.1,3.548]
[1756050938944,0.7538,4805.2,4805.1,5.62912214]
[1756050939180,0.7538,4805.2,4805.0,0.004]
[1756050939463,0.6809284,4805.1,4805.0,0.004]
[1756050939651,0.9957284,4805.1,4805.0,0.004]
[1756050944664,0.7538,4805.1,4805.0,0.004]
[1756050950709,0.104,4805.3,4805.0,0.004]
[1756050950912,0.543,4805.5,4805.0,0.004]
[1756050951073,0.439,4805.4,4805.0,0.004]
[1756050951273,0.3148,4805.1,4805.0,0.004]
[1756050951817,0.7742,4805.1,4805.0,0.004]
[1756050951999,0.104,4805.5,4805.0,0.004]
[1756050952175,0.001,4805.6,4805.2,0.104]
[1756050952569,0.4604,4805.6,4805.2,0.104]
[1756050953175,0.2995,4805.3,4805.2,0.104]
[1756050953630,0.7589,4805.3,4805.2,0.104]
[1756050953907,0.4594,4805.3,4805.2,0.104]
[1756050954083,0.001,4805.6,4805.2,0.104]
[1756050954486,0.4594,4805.5,4805.2,2.18507578]
[1756050954681,0.001,4805.6,4805.2,0.104]
[1756050954885,0.4604,4805.6,4805.2,0.104]
[1756050955088,0.4604,4805.6,4805.2,2.18507708]
[1756050955283,0.001,4805.6,4805.2,2.18507708]
[1756050955602,0.4594,4805.5,4805.2,2.18507708]
[1756050955802,0.001,4805.6,4805.2,0.104]
[1756050956104,0.001,4805.6,4805.3,2.08103401]
[1756050956305,0.4604,4805.6,4805.3,2.08103552]
[1756050956503,0.4604,4805.6,4805.2,0.104]
[1756050956504,0.001,4805.6,4805.2,0.104]
[1756050956710,0.2995,4805.4,4805.2,3.65]
[1756050956876,0.4594,4805.3,4805.2,0.104]
[1756050957080,0.7589,4805.3,4805.2,0.104]
[1756050958206,0.7589,4805.3,4805.0,0.108]
[1756050958413,0.4594,4805.2,4805.0,0.108]
[1756050958610,0.2995,4805.1,4805.0,0.004]
[1756050959180,0.7589,4805.1,4805.0,0.004]